[Event "RUS-chT Men Rapid 2019"]
[Site "Sochi"]
[Date "2019.10.18"]
[Round "4.28"]
[White "Dianov, Alexey"]
[Black "Garifullina, Leya"]
[Result "1-0"]
[ECO "B22"]
[WhiteElo "2158"]
[BlackElo "2189"]
[Annotator "NA"]
[PlyCount "151"]
[EventDate "2019.10.18"]
[EventType "swiss"]
[EventCountry "RUS"]
[SourceTitle "playchess.com"]
[Source "ChessBase"]
[SourceQuality "1"]
[TimeControl "900+10"]

1. e4 {[%emt 0:00:00]} c5 {[%emt 0:00:00]} 2. c3 {[%emt 0:00:00]} e6 {[%emt 0:00:00]} 3. d4 {[%emt 0:00:00]} d5 {[%emt 0:00:00]} 4. exd5 {[%emt 0:00:00]} exd5 {[%emt 0:00:00]} 5. Nf3 {[%emt 0:00:00]} Nc6 {[%emt 0:00:02]} 6. Bb5 {[%emt 0:00:04]} Bd6 {[%emt 0:00:01]} 7. dxc5 {[%emt 0:00:02]} Bxc5 {[%emt 0:00:02]} 8. O-O {[%emt 0:00:02]} Nge7 {[%emt 0:00:13]} 9. Nbd2 {[%emt 0:00:04]} O-O {[%emt 0:00:03]} 10. Nb3 {[%emt 0:00:03]} Bb6 {[%emt 0:00:02]} 11. Nbd4 {[%emt 0:00:35]} Bg4 {[%emt 0:00:34]} 12. Nxc6 {[%emt 0:00:18]} bxc6 {[%emt 0:00:03]} 13. Be2 {[%emt 0:00:03]} Bc7 {[%emt 0:00:17]} 14. Qa4 {[%emt 0:00:23]} Bh5 {[%emt 0:00:28]} 15. Bf4 {[%emt 0:00:08]} Rb8 {[%emt 0:00:26]} 16. Bxc7 {[%emt 0:00:31]} Qxc7 {[%emt 0:00:02]} 17. b3 {[%emt 0:00:02]} Ng6 {[%emt 0:00:24]} 18. Nd4 {[%emt 0:01:25]} Bxe2 {[%emt 0:00:28]} 19. Nxe2 {[%emt 0:00:01]} Rfe8 {[%emt 0:00:15]} 20. Ng3 {[%emt 0:00:25]} Nf4 {[%emt 0:01:21]} 21. Rfe1 {[%emt 0:00:16]} Ne6 {[%emt 0:01:32]} 22. Rad1 {[%emt 0:01:00]} Rbd8 {[%emt 0:00:34]} 23. Qg4 {[%emt 0:00:10]} Qf4 {[%emt 0:00:18]} 24. Qxf4 {[%emt 0:00:34]} Nxf4 {[%emt 0:00:02]} 25. Kf1 {[%emt 0:00:40]} Rxe1+ {[%emt 0:00:27]} 26. Rxe1 {[%emt 0:00:08]} Kf8 {[%emt 0:00:13]} 27. Ne2 {[%emt 0:00:59]} Nxe2 {[%emt 0:00:04]} 28. Rxe2 {[%emt 0:00:00]} Rb8 {[%emt 0:00:42]} 29. Rd2 {[%emt 0:00:18]} Ke7 {[%emt 0:00:05]} 30. Rd4 {[%emt 0:00:03]} Ke6 {[%emt 0:00:19]} 31. Ra4 {[%emt 0:00:03]} Rb7 {[%emt 0:00:02]} 32. Ra6 {[%emt 0:00:05]} Kd6 {[%emt 0:00:05]} 33. Ke2 {[%emt 0:00:01]} Kc5 {[%emt 0:00:24]} 34. Ra4 {[%emt 0:00:39]} Re7+ {[%emt 0:00:19]} 35. Kd2 {[%emt 0:00:03]} Kb6 {[%emt 0:00:16]} 36. Rg4 {[%emt 0:00:21]} g6 {[%emt 0:00:10]} 37. Rh4 {[%emt 0:00:02]} h5 {[%emt 0:00:01]} 38. Rf4 {[%emt 0:00:02]} Kc5 {[%emt 0:00:05]} 39. Rf6 {[%emt 0:00:30]} Kb6 {[%emt 0:02:29]} 40. h4 {[%emt 0:00:10]} Kc5 {[%emt 0:01:46]} 41. f3 {[%emt 0:00:17]} Kb6 {[%emt 0:00:09]} 42. g3 {[%emt 0:02:33]} a5 {[%emt 0:00:06]} 43. Rf4 {[%emt 0:02:16]} Kc5 {[%emt 0:01:28]} 44. g4 {[%emt 0:00:18]} hxg4 {[%emt 0:00:08]} 45. fxg4 {[%emt 0:00:01]} Kd6 {[%emt 0:01:03]} 46. h5 {[%emt 0:01:24]} gxh5 47. gxh5 Re5 {[%emt 0:01:32]} 48. Rh4 {[%emt 0:00:18]} Re8 {[%emt 0:00:04]} 49. h6 {[%emt 0:01:11]} Rh8 {[%emt 0:00:01]} 50. h7 {[%emt 0:00:13]} Ke5 {[%emt 0:00:17]} 51. a4 {[%emt 0:00:01]} c5 {[%emt 0:00:04]} 52. Rh5+ {[%emt 0:00:10]} f5 {[%emt 0:00:04]} 53. Ke3 {[%emt 0:00:12]} c4 {[%emt 0:00:26]} 54. bxc4 {[%emt 0:00:28]} dxc4 {[%emt 0:00:02]} 55. Kf3 {[%emt 0:00:02]} Kf6 {[%emt 0:00:07]} 56. Kf4 {[%emt 0:00:09]} Kg6 {[%emt 0:00:01]} 57. Rg5+ {[%emt 0:00:21]} Kh6 {[%emt 0:00:29]} 58. Rg1 {[%emt 0:00:14]} Rxh7 {[%emt 0:02:03]} 59. Rh1+ {[%emt 0:00:01]} Kg6 {[%emt 0:00:00]} 60. Rxh7 {[%emt 0:00:01]} Kxh7 {[%emt 0:00:01]} 61. Kxf5 {[%emt 0:00:01]} Kg7 {[%emt 0:00:03]} 62. Ke5 {[%emt 0:00:02]} Kf7 {[%emt 0:00:01]} 63. Kd5 {[%emt 0:00:02]} Ke7 {[%emt 0:00:01]} 64. Kxc4 {[%emt 0:00:01]} Kd7 {[%emt 0:00:01]} 65. Kb5 {[%emt 0:00:01]} Kd6 {[%emt 0:00:01]} 66. c4 {[%emt 0:00:06]} Kc7 {[%emt 0:00:02]} 67. Kxa5 {[%emt 0:00:02]} Kc6 {[%emt 0:00:00]} 68. Kb4 {[%emt 0:00:01]} Kb6 69. c5+ Kc6 {[%emt 0:00:03]} 70. Kc4 {[%emt 0:00:01]} Kc7 {[%emt 0:00:01]} 71. Kb5 {[%emt 0:00:01]} Kb7 {[%emt 0:00:01]} 72. c6+ {[%emt 0:00:00]} Kc7 {[%emt 0:00:01]} 73. Kc5 {[%emt 0:00:01]} Kc8 {[%emt 0:00:01]} 74. Kb6 {[%emt 0:00:00]} Kb8 {[%emt 0:00:00]} 75. c7+ {[%emt 0:00:01]} Kc8 {[%emt 0:00:01]} 76. a5 1-0

[Event "RUS-chT Men Rapid 2019"]
[Site "Sochi"]
[Date "2019.10.18"]
[Round "5.2"]
[White "Potkin, Vladimir"]
[Black "Pridorozhni, Aleksei"]
[Result "1/2-1/2"]
[ECO "D35"]
[WhiteElo "2583"]
[BlackElo "2599"]
[Annotator "ChessBase"]
[PlyCount "47"]
[EventDate "2019.10.18"]
[EventType "swiss"]
[EventCountry "RUS"]
[SourceTitle "playchess.com"]
[Source "ChessBase"]
[SourceQuality "1"]
[TimeControl "900+10"]

1. c4 {[%emt 0:00:00]} e6 {[%emt 0:00:00]} 2. Nc3 {[%emt 0:00:00]} d5 {[%emt 0:00:00]} 3. d4 {[%emt 0:00:00]} Nf6 {[%emt 0:00:00]} 4. cxd5 {[%emt 0:00:06]} Nxd5 {[%emt 0:00:02]} 5. e3 {[%emt 0:00:13]} Be7 {[%emt 0:00:59]} 6. Bd3 {[%emt 0:00:28]} O-O {[%emt 0:00:41]} 7. Nf3 {[%emt 0:00:05]} b6 {[%emt 0:00:14]} 8. O-O {[%emt 0:00:36]} c5 {[%emt 0:01:08]} 9. Nxd5 {[%emt 0:00:53]} exd5 {[%emt 0:00:02]} 10. dxc5 {[%emt 0:00:11]} bxc5 {[%emt 0:00:03]} 11. e4 {[%emt 0:00:08]} d4 {[%emt 0:00:12]} 12. e5 {[%emt 0:01:41]} Ba6 {[%emt 0:00:31]} 13. Re1 {[%emt 0:02:06]} Bxd3 {[%emt 0:00:20]} 14. Qxd3 {[%emt 0:00:01]} Nc6 {[%emt 0:00:11]} 15. Qe4 {[%emt 0:00:08]} Rc8 {[%emt 0:00:32]} 16. Bd2 {[%emt 0:00:58]} Qd7 {[%emt 0:00:31]} 17. Rac1 {[%emt 0:00:16]} h6 {[%emt 0:00:36]} 18. b3 {[%emt 0:00:32]} Rfe8 {[%emt 0:01:23]} 19. e6 {[%emt 0:01:50]} Qxe6 {[%emt 0:00:07]} 20. Qxe6 {[%emt 0:00:02]} fxe6 {[%emt 0:00:02]} 21. Rxe6 {[%emt 0:00:01]} Bf8 {[%emt 0:00:08]} 22. Rxe8 {[%emt 0:00:02]} Rxe8 {[%emt 0:00:01]} 23. Kf1 {[%emt 0:00:02]} Kf7 {[%emt 0:00:21]} 24. Ne1 {[%emt 0:00:49]} 1/2-1/2

[Event "RUS-chT Men Rapid 2019"]
[Site "Sochi"]
[Date "2019.10.18"]
[Round "5.3"]
[White "Belyakov, Bogdan"]
[Black "Savchenko, Boris"]
[Result "1/2-1/2"]
[ECO "B22"]
[WhiteElo "2495"]
[BlackElo "2581"]
[Annotator "ChessBase"]
[PlyCount "42"]
[EventDate "2019.10.18"]
[EventType "swiss"]
[EventCountry "RUS"]
[SourceTitle "playchess.com"]
[Source "ChessBase"]
[SourceQuality "1"]
[TimeControl "900+10"]

1. e4 {[%emt 0:00:00]} c5 {[%emt 0:00:00]} 2. c3 {[%emt 0:00:00]} Nf6 {[%emt 0:00:00]} 3. e5 {[%emt 0:00:00]} Nd5 {[%emt 0:00:00]} 4. Bc4 {[%emt 0:00:00]} Nb6 {[%emt 0:00:00]} 5. Bb3 {[%emt 0:00:00]} c4 {[%emt 0:00:05]} 6. Bc2 {[%emt 0:00:02]} Nc6 {[%emt 0:00:03]} 7. Nf3 {[%emt 0:00:02]} Qc7 {[%emt 0:00:16]} 8. O-O {[%emt 0:00:04]} Nxe5 {[%emt 0:00:02]} 9. Nxe5 {[%emt 0:00:02]} Qxe5 {[%emt 0:00:02]} 10. Re1 {[%emt 0:00:02]} Qc7 {[%emt 0:00:30]} 11. a4 {[%emt 0:00:01]} e6 {[%emt 0:00:03]} 12. a5 {[%emt 0:01:39]} Nd5 {[%emt 0:00:01]} 13. d3 {[%emt 0:00:02]} cxd3 {[%emt 0:00:06]} 14. Qxd3 {[%emt 0:00:02]} Nf6 {[%emt 0:00:15]} 15. Na3 {[%emt 0:01:33]} Qxa5 {[%emt 0:01:20]} 16. Bf4 {[%emt 0:02:02]} Bxa3 {[%emt 0:01:16]} 17. Rxa3 {[%emt 0:00:20]} Qd5 {[%emt 0:00:11]} 18. Qe2 {[%emt 0:01:42]} Qh5 {[%emt 0:01:09]} 19. Qd2 {[%emt 0:00:36]} Qd5 {[%emt 0:00:04]} 20. Qe2 {[%emt 0:00:22]} Qh5 {[%emt 0:00:02]} 21. Qd2 {[%emt 0:00:41]} Qd5 {[%emt 0:00:02]} 1/2-1/2

[Event "RUS-chT Men Rapid 2019"]
[Site "Sochi"]
[Date "2019.10.18"]
[Round "5.5"]
[White "Drygalov, Andrey"]
[Black "Bocharov, Dmitry"]
[Result "1-0"]
[ECO "B47"]
[WhiteElo "2484"]
[BlackElo "2519"]
[Annotator "ChessBase"]
[PlyCount "73"]
[EventDate "2019.10.18"]
[EventType "swiss"]
[EventCountry "RUS"]
[SourceTitle "playchess.com"]
[Source "ChessBase"]
[SourceQuality "1"]
[TimeControl "900+10"]

1. e4 {[%emt 0:00:00]} c5 {[%emt 0:00:00]} 2. Nf3 {[%emt 0:00:00]} e6 {[%emt 0:00:01]} 3. d4 {[%emt 0:00:00]} cxd4 {[%emt 0:00:02]} 4. Nxd4 {[%emt 0:00:00]} Nc6 {[%emt 0:00:01]} 5. Nc3 {[%emt 0:00:00]} Qc7 {[%emt 0:00:04]} 6. g3 {[%emt 0:00:00]} a6 {[%emt 0:00:04]} 7. Bg2 {[%emt 0:00:01]} Nf6 {[%emt 0:00:02]} 8. O-O {[%emt 0:00:01]} Be7 {[%emt 0:00:35]} 9. Re1 {[%emt 0:00:13]} O-O {[%emt 0:00:03]} 10. Nxc6 {[%emt 0:00:08]} dxc6 {[%emt 0:00:02]} 11. e5 {[%emt 0:00:12]} Rd8 {[%emt 0:00:02]} 12. Qf3 {[%emt 0:00:20]} Nd5 {[%emt 0:00:02]} 13. h4 {[%emt 0:00:08]} b6 {[%emt 0:00:14]} 14. Bg5 {[%emt 0:00:47]} h6 {[%emt 0:00:15]} 15. Bxe7 {[%emt 0:00:04]} Nxe7 {[%emt 0:00:02]} 16. h5 {[%emt 0:03:17]} Bb7 {[%emt 0:01:07]} 17. Rad1 {[%emt 0:00:47]} Rab8 {[%emt 0:01:20]} 18. Qf4 {[%emt 0:02:06]} Rxd1 {[%emt 0:04:24]} 19. Rxd1 {[%emt 0:00:01]} Nd5 {[%emt 0:00:01]} 20. Nxd5 {[%emt 0:00:22]} exd5 {[%emt 0:01:55]} 21. Qe3 {[%emt 0:02:53]} Bc8 {[%emt 0:00:33]} 22. f4 {[%emt 0:01:32]} Be6 {[%emt 0:00:29]} 23. Bf3 {[%emt 0:00:22]} Rd8 {[%emt 0:00:07]} 24. g4 {[%emt 0:00:16]} c5 {[%emt 0:00:03]} 25. c3 {[%emt 0:00:01]} d4 {[%emt 0:01:47]} 26. cxd4 {[%emt 0:00:01]} cxd4 {[%emt 0:00:01]} 27. Rxd4 {[%emt 0:00:20]} Rxd4 {[%emt 0:00:01]} 28. Qxd4 {[%emt 0:00:01]} Bxa2 {[%emt 0:00:05]} 29. Kg2 {[%emt 0:00:53]} a5 {[%emt 0:00:18]} 30. Be4 {[%emt 0:01:06]} Be6 {[%emt 0:00:26]} 31. f5 {[%emt 0:00:02]} Bd7 {[%emt 0:00:01]} 32. Kh3 {[%emt 0:00:26]} b5 {[%emt 0:00:57]} 33. Bd5 {[%emt 0:00:02]} Be8 {[%emt 0:00:11]} 34. e6 {[%emt 0:00:14]} fxe6 {[%emt 0:00:05]} 35. Bxe6+ {[%emt 0:00:13]} Kh8 {[%emt 0:01:33]} 36. f6 {[%emt 0:00:31]} a4 {[%emt 0:00:20]} 37. Qb4 {[%emt 0:00:33]} 1-0

[Event "RUS-chT Men Rapid 2019"]
[Site "Sochi"]
[Date "2019.10.18"]
[Round "5.6"]
[White "Yuffa, Daniil"]
[Black "Lugovskoy, Maxim"]
[Result "1-0"]
[ECO "E06"]
[WhiteElo "2577"]
[BlackElo "2436"]
[Annotator "ChessBase"]
[PlyCount "66"]
[EventDate "2019.10.18"]
[EventType "swiss"]
[EventCountry "RUS"]
[SourceTitle "playchess.com"]
[Source "ChessBase"]
[SourceQuality "1"]
[TimeControl "900+10"]

1. d4 {[%emt 0:00:00]} d5 {[%emt 0:00:00]} 2. c4 {[%emt 0:00:00]} e6 {[%emt 0:00:00]} 3. g3 {[%emt 0:00:04]} Nf6 {[%emt 0:00:17]} 4. Bg2 {[%emt 0:00:02]} Be7 {[%emt 0:00:01]} 5. Nf3 {[%emt 0:00:07]} O-O {[%emt 0:00:02]} 6. O-O {[%emt 0:00:03]} dxc4 {[%emt 0:00:03]} 7. Qc2 {[%emt 0:00:04]} a6 {[%emt 0:00:02]} 8. a4 {[%emt 0:00:03]} Bd7 {[%emt 0:00:32]} 9. Bg5 {[%emt 0:00:04]} Bc6 {[%emt 0:00:20]} 10. Rd1 {[%emt 0:00:07]} Nbd7 {[%emt 0:00:30]} 11. Nbd2 {[%emt 0:00:14]} h6 {[%emt 0:01:13]} 12. Bxf6 {[%emt 0:00:03]} Nxf6 {[%emt 0:00:05]} 13. Nxc4 {[%emt 0:00:06]} Be4 {[%emt 0:00:54]} 14. Qc1 {[%emt 0:00:03]} b5 {[%emt 0:00:58]} 15. Nce5 {[%emt 0:00:36]} Qd5 {[%emt 0:00:09]} 16. Qxc7 {[%emt 0:01:41]} Bd6 {[%emt 0:00:03]} 17. Qa5 {[%emt 0:00:38]} Rfc8 {[%emt 0:00:55]} 18. Rdc1 {[%emt 0:01:13]} Rxc1+ {[%emt 0:03:20]} 19. Rxc1 {[%emt 0:00:01]} bxa4 {[%emt 0:00:33]} 20. Qxa4 {[%emt 0:00:39]} a5 {[%emt 0:00:17]} 21. Nc4 {[%emt 0:02:32]} Rc8 {[%emt 0:00:56]} 22. Rc3 {[%emt 0:00:55]} Bxf3 {[%emt 0:02:02]} 23. Bxf3 {[%emt 0:00:01]} Qxd4 {[%emt 0:01:45]} 24. e3 {[%emt 0:00:14]} Rxc4 {[%emt 0:00:39]} 25. Qxc4 {[%emt 0:00:23]} Qxc4 {[%emt 0:00:37]} 26. Rxc4 {[%emt 0:00:02]} g5 {[%emt 0:00:06]} 27. Kf1 {[%emt 0:00:33]} Bb4 {[%emt 0:00:10]} 28. Ke2 {[%emt 0:00:16]} Kg7 {[%emt 0:00:01]} 29. h3 {[%emt 0:00:40]} Nd7 {[%emt 0:00:08]} 30. Rc7 {[%emt 0:00:14]} Ne5 {[%emt 0:00:03]} 31. Bh5 {[%emt 0:00:10]} Kf6 {[%emt 0:00:38]} 32. f4 {[%emt 0:00:08]} gxf4 {[%emt 0:00:13]} 33. exf4 {[%emt 0:00:29]} Ng6 {[%emt 0:00:02]} 1-0

[Event "RUS-chT Men Rapid 2019"]
[Site "Sochi"]
[Date "2019.10.18"]
[Round "5.7"]
[White "Vastrukhin, Oleg"]
[Black "Morozevich, Alexander"]
[Result "0-1"]
[ECO "A00"]
[WhiteElo "2428"]
[BlackElo "2659"]
[Annotator "RC"]
[PlyCount "128"]
[EventDate "2019.10.18"]
[EventType "swiss"]
[EventCountry "RUS"]
[SourceTitle "playchess.com"]
[Source "ChessBase"]
[SourceQuality "1"]
[TimeControl "900+10"]

1. g3 {[%emt 0:00:00]} e5 {[%emt 0:00:21]} 2. Bg2 {[%emt 0:00:00]} d5 {[%emt 0:00:01]} 3. c3 {[%emt 0:00:00]} c6 {[%emt 0:00:15]} 4. d4 {[%emt 0:00:02]} Nd7 {[%emt 0:01:04]} 5. c4 {[%emt 0:01:42]} dxc4 {[%emt 0:00:19]} 6. Nf3 {[%emt 0:00:08]} exd4 {[%emt 0:00:16]} 7. Qxd4 {[%emt 0:01:08]} Nb6 {[%emt 0:00:07]} 8. Qxd8+ {[%emt 0:01:31]} Kxd8 {[%emt 0:00:01]} 9. Nc3 {[%emt 0:00:01]} Nf6 {[%emt 0:01:03]} 10. Be3 {[%emt 0:00:54]} Nfd5 {[%emt 0:01:07]} 11. Rd1 {[%emt 0:00:16]} Kc7 {[%emt 0:00:20]} 12. Bd4 {[%emt 0:00:07]} f6 {[%emt 0:00:04]} 13. O-O {[%emt 0:00:27]} Nxc3 {[%emt 0:01:47]} 14. bxc3 {[%emt 0:00:19]} Bd6 {[%emt 0:01:24]} 15. e4 {[%emt 0:01:50]} Re8 {[%emt 0:00:07]} 16. Nd2 {[%emt 0:00:50]} c5 {[%emt 0:03:22]} 17. Be3 {[%emt 0:00:07]} Be6 {[%emt 0:00:01]} 18. f4 {[%emt 0:01:08]} Rad8 {[%emt 0:00:57]} 19. e5 {[%emt 0:01:14]} fxe5 {[%emt 0:00:01]} 20. Ne4 {[%emt 0:00:02]} Bf8 {[%emt 0:01:28]} 21. Rxd8 {[%emt 0:02:43]} Rxd8 {[%emt 0:00:03]} 22. fxe5 {[%emt 0:00:02]} Nd5 {[%emt 0:01:58]} 23. Bxc5 {[%emt 0:00:36]} Bxc5+ {[%emt 0:00:04]} 24. Nxc5 {[%emt 0:00:01]} Bg8 {[%emt 0:00:45]} 25. e6 {[%emt 0:00:25]} Nf6 {[%emt 0:00:38]} 26. Nxb7 {[%emt 0:00:21]} Rd2 {[%emt 0:00:01]} 27. Nc5 {[%emt 0:00:36]} Rxa2 {[%emt 0:00:26]} 28. e7 {[%emt 0:00:35]} Re2 {[%emt 0:00:45]} 29. Ra1 {[%emt 0:01:35]} Rxe7 {[%emt 0:00:01]} 30. Rxa7+ {[%emt 0:00:01]} Kd6 {[%emt 0:00:00]} 31. Nb7+ {[%emt 0:00:02]} Ke5 {[%emt 0:00:12]} 32. Ra1 {[%emt 0:00:41]} Nd5 {[%emt 0:00:39]} 33. Na5 {[%emt 0:00:39]} Rc7 {[%emt 0:00:10]} 34. Re1+ {[%emt 0:00:15]} Kf6 {[%emt 0:00:12]} 35. Rf1+ {[%emt 0:00:11]} Ke7 {[%emt 0:00:23]} 36. Re1+ {[%emt 0:00:12]} Kd6 37. Rd1 Kc5 {[%emt 0:00:12]} 38. Rb1 {[%emt 0:00:24]} Nxc3 {[%emt 0:00:09]} 39. Nb7+ {[%emt 0:00:10]} Kd4 {[%emt 0:00:04]} 40. Rb2 {[%emt 0:00:14]} Bd5 {[%emt 0:00:19]} 41. Nd6 {[%emt 0:00:02]} Kc5 {[%emt 0:00:21]} 42. Nf5 {[%emt 0:00:17]} Bxg2 {[%emt 0:00:11]} 43. Kxg2 {[%emt 0:00:01]} Nd5 {[%emt 0:00:05]} 44. Ra2 {[%emt 0:00:09]} Kb4 {[%emt 0:00:20]} 45. Nd4 {[%emt 0:00:08]} c3 {[%emt 0:00:04]} 46. Kf3 {[%emt 0:00:04]} Kc4 {[%emt 0:00:03]} 47. Ne2 {[%emt 0:00:23]} Rf7+ {[%emt 0:00:06]} 48. Ke4 {[%emt 0:00:06]} Re7+ {[%emt 0:00:03]} 49. Kf3 {[%emt 0:00:01]} Nb4 {[%emt 0:00:37]} 50. Ra8 {[%emt 0:00:01]} Rc7 {[%emt 0:00:04]} 51. Ke3 {[%emt 0:00:19]} Nd5+ {[%emt 0:00:11]} 52. Kf2 {[%emt 0:00:06]} c2 {[%emt 0:00:06]} 53. Ra3 {[%emt 0:00:13]} Kb4 {[%emt 0:00:10]} 54. Rd3 {[%emt 0:00:11]} Rf7+ {[%emt 0:00:18]} 55. Rf3 {[%emt 0:00:29]} Rxf3+ {[%emt 0:00:02]} 56. Kxf3 {[%emt 0:00:01]} Kc4 {[%emt 0:00:04]} 57. Nc1 {[%emt 0:00:10]} Kc3 {[%emt 0:00:10]} 58. Ke4 {[%emt 0:00:13]} Nf6+ {[%emt 0:00:19]} 59. Kf5 {[%emt 0:00:06]} Kd2 {[%emt 0:00:01]} 60. Nb3+ {[%emt 0:00:01]} Ke3 {[%emt 0:00:05]} 61. g4 {[%emt 0:00:04]} Ne4 {[%emt 0:00:04]} 62. h4 g6+ {[%emt 0:00:16]} 63. Ke5 {[%emt 0:00:27]} Nc5 {[%emt 0:00:02]} 64. Nc1 {[%emt 0:00:00]} Nd3+ {[%emt 0:00:01]} 0-1

[Event "RUS-chT Men Rapid 2019"]
[Site "Sochi"]
[Date "2019.10.18"]
[Round "5.10"]
[White "Lysyj, Igor"]
[Black "Bryakin, Mikhail"]
[Result "1-0"]
[ECO "D11"]
[WhiteElo "2596"]
[BlackElo "2440"]
[Annotator "ChessBase"]
[PlyCount "139"]
[EventDate "2019.10.18"]
[EventType "swiss"]
[EventCountry "RUS"]
[SourceTitle "playchess.com"]
[Source "ChessBase"]
[SourceQuality "1"]
[TimeControl "900+10"]

1. d4 {[%emt 0:00:00]} d5 {[%emt 0:00:00]} 2. c4 {[%emt 0:00:00]} c6 {[%emt 0:00:00]} 3. Nf3 {[%emt 0:00:00]} Nf6 {[%emt 0:00:00]} 4. g3 {[%emt 0:00:00]} Bf5 {[%emt 0:00:00]} 5. Nc3 {[%emt 0:00:00]} e6 {[%emt 0:00:00]} 6. Qb3 {[%emt 0:00:03]} Qb6 {[%emt 0:00:11]} 7. c5 {[%emt 0:00:02]} Qc7 {[%emt 0:00:19]} 8. Bf4 {[%emt 0:00:16]} Qc8 {[%emt 0:00:01]} 9. Nh4 {[%emt 0:00:06]} Be4 {[%emt 0:00:08]} 10. f3 {[%emt 0:00:10]} Bg6 {[%emt 0:00:01]} 11. e4 {[%emt 0:02:24]} Nbd7 {[%emt 0:00:22]} 12. exd5 {[%emt 0:00:16]} Nxd5 {[%emt 0:01:40]} 13. Nxd5 {[%emt 0:00:05]} cxd5 {[%emt 0:00:05]} 14. Bb5 {[%emt 0:01:17]} Be7 {[%emt 0:00:57]} 15. Nxg6 {[%emt 0:00:17]} hxg6 {[%emt 0:00:01]} 16. Rc1 {[%emt 0:00:02]} a6 {[%emt 0:00:23]} 17. c6 {[%emt 0:00:25]} axb5 {[%emt 0:01:20]} 18. cxd7+ {[%emt 0:00:04]} Qxd7 {[%emt 0:00:01]} 19. Rc7 {[%emt 0:00:03]} Qd8 {[%emt 0:00:03]} 20. Qxb5+ Kf8 21. Qxb7 {[%emt 0:01:19]} Rb8 {[%emt 0:00:14]} 22. Qc6 {[%emt 0:00:04]} g5 {[%emt 0:01:33]} 23. Bd2 {[%emt 0:01:30]} g6 {[%emt 0:01:26]} 24. O-O {[%emt 0:00:33]} Kg7 {[%emt 0:00:27]} 25. b3 {[%emt 0:00:16]} Bf6 {[%emt 0:00:26]} 26. Be3 {[%emt 0:00:19]} Qg8 {[%emt 0:01:58]} 27. Rf2 {[%emt 0:01:24]} Re8 {[%emt 0:00:18]} 28. Rc2 {[%emt 0:00:20]} Qh7 {[%emt 0:02:16]} 29. Qb7 {[%emt 0:00:43]} Ref8 {[%emt 0:00:58]} 30. Qa6 {[%emt 0:00:16]} Qh3 {[%emt 0:00:22]} 31. Qf1 {[%emt 0:00:16]} Qh5 {[%emt 0:00:30]} 32. Qe2 {[%emt 0:00:38]} Re8 {[%emt 0:00:15]} 33. R2c6 {[%emt 0:01:01]} Qh3 {[%emt 0:01:33]} 34. Rb7 {[%emt 0:01:40]} e5 {[%emt 0:01:03]} 35. Rxf6 {[%emt 0:00:16]} Kxf6 {[%emt 0:00:14]} 36. dxe5+ {[%emt 0:00:01]} Kg7 {[%emt 0:00:38]} 37. Bxg5 {[%emt 0:01:54]} Kg8 {[%emt 0:00:01]} 38. Re7 {[%emt 0:02:36]} Rxe7 {[%emt 0:00:27]} 39. Bxe7 {[%emt 0:00:01]} Kh7 {[%emt 0:00:01]} 40. Bc5 {[%emt 0:00:08]} Rc8 {[%emt 0:00:03]} 41. b4 {[%emt 0:00:02]} Qf5 {[%emt 0:00:06]} 42. a4 {[%emt 0:00:04]} d4 {[%emt 0:00:04]} 43. Kf2 {[%emt 0:00:07]} Qb1 {[%emt 0:00:10]} 44. a5 {[%emt 0:00:10]} d3 {[%emt 0:00:19]} 45. Qd2 {[%emt 0:00:02]} Rd8 {[%emt 0:00:01]} 46. a6 {[%emt 0:00:15]} Qh1 {[%emt 0:00:03]} 47. Ke3 {[%emt 0:00:06]} Qg1+ {[%emt 0:00:20]} 48. Ke4 {[%emt 0:00:06]} Qf1 {[%emt 0:01:05]} 49. a7 {[%emt 0:00:09]} Qh3 {[%emt 0:00:22]} 50. Ke3 {[%emt 0:00:07]} Qf5 {[%emt 0:00:06]} 51. f4 {[%emt 0:00:10]} Qd7 {[%emt 0:00:12]} 52. Kf2 {[%emt 0:00:36]} Qd5 {[%emt 0:00:10]} 53. Ke3 {[%emt 0:00:32]} Qh1 {[%emt 0:00:02]} 54. Bd6 {[%emt 0:00:12]} Qg1+ {[%emt 0:00:09]} 55. Qf2 {[%emt 0:00:20]} Qb1 {[%emt 0:00:30]} 56. Qg2 {[%emt 0:00:20]} Qa1 {[%emt 0:00:14]} 57. Qb7 {[%emt 0:00:02]} Qe1+ 58. Kxd3 {[%emt 0:00:03]} Qd1+ {[%emt 0:00:12]} 59. Ke3 {[%emt 0:00:07]} Qb3+ {[%emt 0:00:11]} 60. Kd4 {[%emt 0:00:04]} Qa2 {[%emt 0:00:06]} 61. Qc7 {[%emt 0:00:17]} Ra8 {[%emt 0:00:04]} 62. Bc5 {[%emt 0:00:22]} Qd2+ {[%emt 0:00:01]} 63. Kc4 {[%emt 0:00:04]} Kh6 {[%emt 0:00:25]} 64. Kb5 {[%emt 0:00:07]} Qd5 {[%emt 0:00:08]} 65. Qc6 {[%emt 0:00:08]} Qd8 {[%emt 0:00:18]} 66. Qd6 {[%emt 0:00:15]} Qe8+ {[%emt 0:00:07]} 67. Kb6 {[%emt 0:00:03]} Rd8 {[%emt 0:00:17]} 68. Qf8+ {[%emt 0:00:08]} Qxf8 {[%emt 0:00:10]} 69. Bxf8+ {[%emt 0:00:01]} Rxf8 {[%emt 0:00:03]} 70. Kb7 {[%emt 0:00:05]} 1-0

[Event "RUS-chT Men Rapid 2019"]
[Site "Sochi"]
[Date "2019.10.18"]
[Round "5.11"]
[White "Golubov, Saveliy"]
[Black "Gutenev, Alexander"]
[Result "1/2-1/2"]
[ECO "A48"]
[WhiteElo "2469"]
[BlackElo "2469"]
[Annotator "ChessBase"]
[PlyCount "72"]
[EventDate "2019.10.18"]
[EventType "swiss"]
[EventCountry "RUS"]
[SourceTitle "playchess.com"]
[Source "ChessBase"]
[SourceQuality "1"]
[TimeControl "900+10"]

1. d4 {[%emt 0:00:00]} Nf6 {[%emt 0:00:00]} 2. Nf3 {[%emt 0:00:00]} g6 {[%emt 0:00:00]} 3. Bg5 {[%emt 0:00:00]} Bg7 {[%emt 0:00:06]} 4. Nbd2 {[%emt 0:00:03]} d5 {[%emt 0:00:07]} 5. c3 {[%emt 0:00:06]} O-O {[%emt 0:00:10]} 6. e3 {[%emt 0:00:09]} b6 {[%emt 0:02:54]} 7. Bd3 {[%emt 0:01:17]} Bb7 {[%emt 0:00:08]} 8. O-O {[%emt 0:00:51]} Nbd7 {[%emt 0:00:03]} 9. h3 {[%emt 0:00:48]} Ne4 {[%emt 0:01:11]} 10. Bf4 {[%emt 0:00:23]} Re8 {[%emt 0:01:16]} 11. Bxe4 {[%emt 0:05:28]} dxe4 {[%emt 0:00:06]} 12. Ng5 {[%emt 0:00:04]} e5 {[%emt 0:04:12]} 13. dxe5 {[%emt 0:00:12]} Nxe5 {[%emt 0:01:21]} 14. Ngxe4 {[%emt 0:02:08]} Nd3 {[%emt 0:00:33]} 15. f3 {[%emt 0:00:21]} Nxf4 {[%emt 0:02:14]} 16. exf4 {[%emt 0:00:04]} f5 {[%emt 0:00:15]} 17. Nf2 {[%emt 0:01:22]} Qd6 {[%emt 0:00:19]} 18. Re1 {[%emt 0:00:33]} Qxf4 {[%emt 0:00:42]} 19. Rxe8+ {[%emt 0:00:17]} Rxe8 {[%emt 0:00:01]} 20. Nf1 {[%emt 0:00:03]} Qg5 {[%emt 0:00:49]} 21. Qa4 {[%emt 0:00:34]} Re7 {[%emt 0:00:30]} 22. h4 {[%emt 0:00:08]} Qf6 {[%emt 0:00:25]} 23. Qxa7 {[%emt 0:00:29]} Bc6 {[%emt 0:00:01]} 24. Qb8+ {[%emt 0:01:16]} Kf7 {[%emt 0:00:10]} 25. h5 {[%emt 0:00:57]} gxh5 {[%emt 0:00:05]} 26. Rd1 {[%emt 0:01:10]} Kg6 {[%emt 0:01:07]} 27. Qd8 {[%emt 0:00:28]} Bb5 {[%emt 0:00:15]} 28. Nh3 {[%emt 0:00:10]} Bh6 {[%emt 0:00:05]} 29. Qd5 {[%emt 0:00:13]} Qe5 {[%emt 0:00:25]} 30. Qd8 {[%emt 0:00:12]} Bxf1 {[%emt 0:00:17]} 31. Rxf1 {[%emt 0:00:04]} Be3+ {[%emt 0:00:06]} 32. Kh1 {[%emt 0:00:01]} Bh6 {[%emt 0:00:12]} 33. Qg8+ {[%emt 0:00:17]} Bg7 {[%emt 0:00:04]} 34. Qc4 {[%emt 0:00:04]} Qd6 {[%emt 0:00:19]} 35. Qh4 {[%emt 0:00:01]} Bh6 {[%emt 0:00:05]} 36. Qc4 {[%emt 0:00:06]} Qe6 {[%emt 0:00:04]} 1/2-1/2